bitfinex/quotes_BTCUSD_20220218
["timestamp","ask_amount","ask_price","bid_price","bid_amount"]
[1645149013001,0.24987694,40938.0,40933.0,0.331319]
[1645149013002,0.25012514,40938.0,40933.0,0.331319]
[1645149013201,0.25047073,40938.0,40931.0,0.12218065]
[1645149013605,0.25047073,40938.0,40928.0,0.12218602]
[1645149013606,0.01801,40937.0,40928.0,0.12218602]
[1645149013804,0.01801,40937.0,40920.0,0.0489]
[1645149013805,0.01835559,40937.0,40920.0,0.0489]
[1645149014005,0.01835559,40937.0,40918.0,0.0095]
[1645149014006,0.0052,40936.0,40918.0,0.0095]
[1645149014302,0.061106,40933.0,40918.0,0.0095]
[1645149014501,0.35155233,40925.0,40918.0,0.22512526]
[1645149014748,0.35155233,40925.0,40918.0,0.0095]
[1645149014950,0.35155233,40925.0,40919.0,0.331319]
[1645149015147,0.35155233,40925.0,40918.0,0.0095]
[1645149015750,0.2285094,40920.0,40918.0,0.0095]
[1645149015949,0.2285094,40920.0,40917.0,0.331319]
[1645149016148,0.2285094,40920.0,40916.0,0.25010054]
[1645149016149,0.49067922,40920.0,40916.0,0.25010054]
[1645149016449,0.01801,40918.0,40916.0,0.25010054]
[1645149016648,0.49067922,40920.0,40916.0,0.25010054]
[1645149016649,0.29165142,40917.0,40916.0,0.25010054]
[1645149017047,0.27364142,40917.0,40916.0,0.25010054]
[1645149017247,0.2285094,40920.0,40916.0,0.25010054]
[1645149017647,0.01801,40919.0,40916.0,0.25010054]
[1645149017849,0.2285094,40920.0,40916.0,0.25010054]
[1645149018250,0.2285094,40920.0,40917.0,0.331319]
[1645149018701,0.2285094,40920.0,40916.0,0.25010054]
[1645149018702,0.2285094,40920.0,40918.0,0.331319]
[1645149019000,0.2285094,40920.0,40916.0,0.25010054]
[1645149019701,0.2285094,40920.0,40917.0,0.331319]
[1645149019900,0.2023763,40926.0,40916.0,0.25010054]
[1645149020105,0.061115,40925.0,40916.0,0.25010054]
[1645149020800,0.01801,40924.0,40916.0,0.25010054]
[1645149021001,0.20717584,40920.0,40916.0,0.25010054]
[1645149023049,0.20243485,40919.0,40916.0,0.25010054]
[1645149024052,0.20717584,40920.0,40916.0,0.25010054]
[1645149024250,0.19717584,40920.0,40916.0,0.25010054]
[1645149025050,0.63700594,40926.0,40916.0,0.25010054]
[1645149025902,0.061116,40924.0,40916.0,0.25010054]
[1645149026103,0.21992441,40922.0,40916.0,0.25010054]
[1645149026303,0.35208189,40921.0,40916.0,0.25010054]
[1645149026503,0.061116,40924.0,40917.0,0.331319]
[1645149026707,0.5672,40927.0,40917.0,0.331319]
[1645149026708,0.4319,40927.0,40917.0,0.331319]
[1645149026905,0.4319,40927.0,40920.0,0.331319]
[1645149027303,0.4319,40927.0,40920.0,0.481319]
[1645149027504,0.4319,40927.0,40926.0,0.331319]
[1645149027908,0.4319,40927.0,40926.0,0.392413]
[1645149028108,0.00034559,40929.0,40926.0,0.392413]
[1645149028305,0.00099278,40934.0,40932.0,0.00118761]
[1645149028507,0.32170086,40935.0,40932.0,0.00118761]
[1645149028704,0.411,40936.0,40932.0,0.00118761]
[1645149028904,0.4158,40936.0,40932.0,0.00118761]
[1645149029104,0.34371339,40935.0,40932.0,0.00118761]
[1645149029504,0.54897906,40935.0,40932.0,0.00118761]
[1645149029959,0.34371339,40935.0,40932.0,0.00118761]
[1645149030758,0.061099,40935.0,40932.0,0.00118761]
[1645149030961,0.4158,40936.0,40933.0,0.331319]
[1645149031161,0.1297,40943.0,40934.0,0.32170086]
[1645149031359,0.1297,40943.0,40932.0,0.00118761]
[1645149031761,0.1297,40943.0,40933.0,0.331319]
[1645149031762,0.25176008,40938.0,40933.0,0.331319]
[1645149031961,0.25380687,40940.0,40935.0,0.0610827]
[1645149032161,0.1297,40943.0,40935.0,0.0610827]
[1645149032360,0.1297,40943.0,40932.0,0.00118761]
[1645149032361,0.26384925,40937.0,40932.0,0.00118761]
[1645149032962,0.26424883,40937.0,40932.0,0.00118761]
[1645149033398,0.55587023,40937.0,40932.0,0.00118761]
[1645149033602,0.55611829,40937.0,40932.0,0.00118761]
[1645149033999,0.55611829,40937.0,40932.0,0.06227717]
[1645149034400,0.26449689,40937.0,40932.0,0.06227717]
[1645149034601,0.00039958,40937.0,40932.0,0.06227717]
[1645149034800,0.00064764,40937.0,40932.0,0.06227717]
[1645149035001,0.00064764,40937.0,40933.0,0.331319]
[1645149035302,0.00064764,40937.0,40934.0,0.331319]
[1645149035501,0.00064764,40937.0,40935.0,0.331319]
[1645149035705,0.00039958,40937.0,40934.0,0.331319]
[1645149036101,0.00039958,40937.0,40935.0,0.331319]
[1645149036503,0.00039958,40937.0,40932.0,0.00118761]
[1645149036703,0.00039958,40937.0,40933.0,0.331319]
[1645149037354,0.00064745,40937.0,40933.0,0.331319]
[1645149037754,0.00064745,40937.0,40934.0,0.331319]
[1645149038261,0.00039958,40937.0,40934.0,0.331319]
[1645149038856,0.00039958,40937.0,40932.0,0.00118761]
[1645149038857,0.23233797,40936.0,40932.0,0.00118761]
[1645149039056,0.079115,40935.0,40932.0,0.00118761]
[1645149039256,0.11150458,40935.0,40932.0,0.00118761]
[1645149039854,0.24136625,40934.0,40932.0,0.00118761]
[1645149040053,0.24176583,40934.0,40932.0,0.00118761]
[1645149040653,0.0498,40933.0,40932.0,0.00118761]
[1645149040905,0.05019958,40933.0,40932.0,0.00118761]
[1645149041100,0.11820958,40933.0,40932.0,7.61e-06]
[1645149041305,0.11820958,40933.0,40917.0,0.0097]
[1645149041306,0.061126,40929.0,40917.0,0.0097]
[1645149041499,0.38471086,40928.0,40917.0,0.0097]
[1645149041700,0.38511044,40928.0,40917.0,0.0097]
[1645149041901,0.01801,40924.0,40917.0,0.0097]
[1645149042100,0.2503621,40920.0,40917.0,0.0097]
[1645149042305,0.061117,40919.0,40917.0,0.0097]
[1645149042502,0.06151658,40919.0,40917.0,0.009427]
[1645149042702,0.06151658,40919.0,40918.0,0.331319]
[1645149042902,0.06151658,40919.0,40917.0,0.009427]
[1645149042903,0.06151658,40919.0,40917.0,0.331319]
[1645149043103,0.06151658,40919.0,40916.0,0.25010054]
[1645149043303,0.32465321,40918.0,40916.0,0.25010054]
[1645149043507,0.32505279,40918.0,40916.0,0.25010054]
[1645149044203,0.21088463,40917.0,40916.0,0.25010054]
[1645149044503,0.21128421,40917.0,40916.0,0.25010054]
[1645149044753,0.00039958,40917.0,40916.0,0.25010054]
[1645149049403,0.01840958,40917.0,40916.0,0.25010054]
[1645149049604,0.00039958,40917.0,40916.0,0.25010054]
[1645149049808,0.05039958,40917.0,40916.0,0.25010054]
[1645149050107,0.05039958,40917.0,40914.0,0.00023313]
[1645149050108,0.01801,40915.0,40914.0,0.00023313]
[1645149050307,0.061139,40914.0,40906.0,0.00030965]
[1645149050505,0.25900091,40907.0,40905.0,0.0095]
[1645149050704,0.25900091,40907.0,40905.0,0.331319]
[1645149050705,0.00039958,40907.0,40905.0,0.331319]
[1645149050905,0.00039958,40907.0,40906.0,0.00093272]
[1645149050906,0.22616394,40907.0,40906.0,0.00093272]
[1645149051509,0.22616394,40907.0,40904.0,0.00030965]
[1645149051707,0.22616394,40907.0,40904.0,0.00023317]
[1645149051907,0.22616394,40907.0,40904.0,0.00054282]
[1645149052158,0.28730394,40907.0,40904.0,0.00023317]
[1645149052354,0.28730394,40907.0,40904.0,0.00054282]
[1645149052553,0.28730394,40907.0,40904.0,0.00023317]
[1645149052753,0.28730394,40907.0,40904.0,0.00030965]
[1645149052954,0.28730394,40907.0,40904.0,0.331319]
[1645149053155,0.28730394,40907.0,40904.0,0.00030965]
[1645149053356,0.19857251,40905.0,40903.0,0.18593621]
[1645149053558,0.34060112,40904.0,40901.0,0.00030965]
[1645149053759,0.3410007,40904.0,40900.0,0.01]
[1645149053962,0.0052,40903.0,40900.0,0.01]
[1645149054155,0.01801,40902.0,40900.0,0.01]
[1645149054355,0.38306658,40901.0,40900.0,0.01]
[1645149054556,0.38346616,40901.0,40900.0,0.01]
[1645149054757,0.53346616,40901.0,40900.0,0.01]
[1645149054956,0.04539958,40901.0,40900.0,0.01]
[1645149057400,0.06340958,40901.0,40900.0,0.01]
[1645149057601,0.00039958,40901.0,40900.0,0.01]
[1645149058402,0.01801,40901.0,40900.0,0.01]
[1645149058600,0.01807125,40901.0,40900.0,0.01]
[1645149058801,0.2837758,40901.0,40900.0,0.01]
[1645149059206,0.2657658,40901.0,40900.0,0.01]
[1645149059852,0.2607658,40901.0,40900.0,0.01]
[1645149060254,0.3107658,40901.0,40900.0,0.01]
[1645149060651,0.2607658,40901.0,40900.0,0.01]
[1645149061055,0.3107658,40901.0,40900.0,0.01]
[1645149061858,0.05,40901.0,40900.0,0.01]
[1645149062053,0.122298,40902.0,40900.0,0.01]
[1645149062654,0.122298,40902.0,40900.0,0.01030965]
[1645149062854,0.41393653,40902.0,40900.0,0.01030965]
[1645149063154,0.01801,40901.0,40900.0,0.01030965]
[1645149063401,0.41393653,40902.0,40900.0,0.01030965]
[1645149063599,0.122298,40902.0,40900.0,0.01030965]
[1645149063899,0.122298,40902.0,40900.0,0.01]
[1645149064099,0.06801,40901.0,40900.0,0.01]
[1645149064300,0.05,40901.0,40900.0,0.01]
[1645149064698,0.31959486,40901.0,40900.0,0.01]
[1645149068064,1.03960483,40900.0,40899.0,0.00030965]
[1645149068263,1.03960483,40900.0,40898.0,0.00023427]
[1645149068463,1.03960483,40900.0,40894.0,0.00030965]
[1645149068663,0.061154,40899.0,40897.0,0.00023427]
[1645149068864,0.255351,40899.0,40897.0,0.00023427]
[1645149069567,0.6383143,40899.0,40894.0,0.00030965]
[1645149069764,0.6383143,40899.0,40896.0,0.00023416]
[1645149069765,0.061148,40897.0,40896.0,0.00023416]
[1645149070368,0.061148,40897.0,40890.0,0.0009368]
[1645149070369,0.95,40896.0,40891.0,0.00030965]
[1645149070566,0.95,40896.0,40890.0,0.0009368]
[1645149070567,0.01801,40895.0,40890.0,0.0009368]
[1645149070766,0.01801,40895.0,40873.0,0.3165]
[1645149070767,0.95,40893.0,40873.0,0.3165]
[1645149071009,0.3848193,40892.0,40876.0,0.0092]
[1645149071210,0.32264848,40880.0,40876.0,0.0092]
[1645149071410,0.01801,40879.0,40869.0,0.3218093]
[1645149071612,0.37944543,40879.0,40869.0,0.0098]
[1645149072214,0.22062253,40870.0,40869.0,0.0048]
[1645149072411,0.22885082,40874.0,40873.0,0.34645805]
[1645149072611,0.41240382,40874.0,40873.0,0.34645805]
[1645149073014,0.49160104,40874.0,40873.0,0.34645805]
[1645149073211,0.47359104,40874.0,40873.0,0.34645805]
[1645149073409,0.53477704,40874.0,40873.0,0.34645805]
[1645149073612,0.85718204,40874.0,40873.0,0.34645805]
[1645149074211,1.21599482,40874.0,40873.0,0.34645805]
[1645149074413,0.89358982,40874.0,40873.0,0.34645805]
[1645149076757,1.13358982,40874.0,40873.0,0.34645805]
[1645149077855,1.30159982,40874.0,40873.0,0.34645805]
[1645149078058,1.40159982,40874.0,40873.0,0.19035805]
[1645149078259,1.40166064,40874.0,40873.0,0.19035805]
[1645149078501,0.95,40873.0,40871.0,0.00024786]
[1645149078701,0.06801,40872.0,40871.0,0.00024786]
[1645149078900,0.32655713,40872.0,40871.0,0.00024786]
[1645149079302,0.32655713,40872.0,40861.0,0.009]
[1645149079303,0.061199,40869.0,40861.0,0.009]
[1645149079502,0.20219833,40866.0,40863.0,0.00099163]
[1645149080106,0.061199,40867.0,40863.0,0.00099163]
[1645149080302,0.061199,40867.0,40864.0,0.331319]
[1645149081100,0.061199,40867.0,40863.0,0.00014645]
[1645149081502,0.19707341,40864.0,40863.0,0.00014645]
[1645149081702,0.19707341,40864.0,40862.0,0.331319]
[1645149081900,0.0612,40866.0,40861.0,0.009]
[1645149081901,0.0612,40866.0,40863.0,0.00014645]
[1645149082158,0.19225169,40865.0,40863.0,0.00014645]
[1645149082956,0.44494159,40865.0,40861.0,0.009]
[1645149083157,0.50613459,40865.0,40862.0,0.00014646]
[1645149083359,0.95,40864.0,40861.0,0.00414646]
[1645149083559,0.945,40864.0,40861.0,0.00414646]
[1645149083957,0.945,40864.0,40860.0,0.5052]
[1645149085262,0.52760104,40865.0,40860.0,0.5052]
[1645149085457,0.31470591,40865.0,40860.0,0.50534573]
[1645149086602,0.31470591,40865.0,40860.0,0.5052]
[1645149086803,0.31470591,40865.0,40860.0,0.00014573]
[1645149087206,0.01801,40864.0,40860.0,0.00014573]
[1645149087404,0.31470591,40865.0,40860.0,0.00014573]
[1645149087809,0.061201,40863.0,40856.0,0.00030411]
[1645149088004,0.22370582,40857.0,40855.0,0.00970411]
[1645149088204,0.22370582,40857.0,40853.0,0.331319]
[1645149088404,0.07758018,40859.0,40853.0,0.331319]
[1645149089004,0.061201,40861.0,40853.0,0.33162311]
[1645149089504,0.061201,40857.0,40853.0,0.33162311]
[1645149089756,0.061201,40857.0,40853.0,0.00030411]
[1645149089960,0.061201,40857.0,40852.0,0.0094]
[1645149089961,0.33369115,40856.0,40852.0,0.0094]
[1645149090361,0.33369115,40856.0,40853.0,0.00024819]
[1645149090559,0.43801,40856.0,40853.0,0.00024819]
[1645149090758,0.39802226,40855.0,40853.0,0.00024819]
[1645149091159,0.38001226,40855.0,40853.0,0.00024819]
[1645149091356,0.25836275,40853.0,40848.0,0.00030411]
[1645149091560,0.25836275,40853.0,40837.0,1.18145622]
[1645149091561,0.01801,40851.0,40846.0,0.00099293]
[1645149091758,0.045,40850.0,40846.0,0.00099293]
[1645149091958,0.01801,40849.0,40846.0,0.00099293]
[1645149092157,0.06123,40848.0,40846.0,0.00099293]
[1645149092357,0.21482957,40847.0,40846.0,0.00099293]
[1645149092556,0.55614235,40847.0,40836.0,0.25411738]
[1645149092759,0.21349421,40846.0,40845.0,0.00024822]
[1645149093159,0.122459,40846.0,40845.0,0.00024822]
[1645149093402,0.22442957,40847.0,40846.0,0.14945899]
[1645149093604,0.23283957,40847.0,40846.0,0.14945899]
[1645149094005,0.58597832,40847.0,40846.0,0.14945899]
[1645149094204,0.81205482,40847.0,40846.0,0.14945899]
[1645149094404,0.83006482,40847.0,40846.0,0.14945899]
[1645149094605,0.88006482,40847.0,40846.0,0.14945899]
[1645149096005,1.20304106,40847.0,40846.0,0.14945899]
[1645149096407,1.24804106,40847.0,40846.0,0.14945899]
[1645149096810,1.19804106,40847.0,40846.0,0.14945899]
[1645149097470,0.84490231,40847.0,40846.0,0.14945899]
[1645149097670,0.01801,40847.0,40846.0,0.14945899]
[1645149098272,0.25807249,40847.0,40846.0,0.14945899]
[1645149098669,0.55025913,40847.0,40846.0,0.14945899]
[1645149098870,0.24006249,40847.0,40846.0,0.14945899]
[1645149099068,0.25807249,40847.0,40846.0,0.14945899]
[1645149099970,0.54955936,40847.0,40846.0,0.14945899]
[1645149100171,0.8725356,40847.0,40846.0,0.14945899]
[1645149100373,0.59955936,40847.0,40846.0,0.14945899]
[1645149100572,0.54955936,40847.0,40846.0,0.14945899]
[1645149101010,0.30807249,40847.0,40846.0,5.899e-05]
[1645149101210,0.36727249,40847.0,40846.0,5.899e-05]
[1645149101413,0.46727249,40847.0,40846.0,5.899e-05]
[1645149102511,0.79012815,40847.0,40846.0,5.899e-05]
[1645149102914,0.64012815,40847.0,40846.0,5.899e-05]
[1645149103316,0.31727249,40847.0,40846.0,5.899e-05]
[1645149103513,0.24926249,40847.0,40846.0,5.899e-05]
[1645149104214,0.26727249,40847.0,40846.0,5.899e-05]
[1645149104856,0.31727249,40847.0,40846.0,5.899e-05]
[1645149105555,0.64012815,40847.0,40846.0,5.899e-05]
[1645149105755,0.69012815,40847.0,40846.0,5.899e-05]
[1645149106959,1.09773761,40847.0,40846.0,5.899e-05]
[1645149107159,1.09773761,40847.0,40837.0,0.009791]
[1645149107160,0.95,40846.0,40838.0,0.00030119]
[1645149107358,0.061252,40844.0,40838.0,0.00099304]
[1645149107557,0.3261655,40842.0,40838.0,0.00129423]
[1645149107758,0.06301,40841.0,40838.0,0.00129423]
[1645149107958,0.01801,40839.0,40838.0,0.00129423]
[1645149108159,0.01801,40839.0,40837.0,0.009791]
[1645149108160,0.95,40838.0,40837.0,0.00509219]
[1645149108403,0.95,40838.0,40827.0,0.0094]
[1645149108404,0.06126,40836.0,40827.0,0.0094]
[1645149108607,0.40212566,40835.0,40827.0,0.0094]
[1645149108902,0.24946211,40828.0,40827.0,0.0094]
[1645149109103,0.23145211,40828.0,40818.0,0.42]
[1645149109303,0.51024649,40828.0,40818.0,0.42]
[1645149109504,0.122521,40825.0,40818.0,0.42]
[1645149109703,0.122521,40825.0,40819.0,0.0096819]
[1645149109903,0.372521,40825.0,40818.0,0.50489906]
[1645149110105,0.122521,40825.0,40819.0,0.331319]
[1645149110505,0.061261,40824.0,40819.0,0.331319]
[1645149110804,0.061259,40823.0,40819.0,0.331319]
[1645149111208,0.12251493,40834.0,40817.0,0.28194952]
[1645149111209,0.0091,40831.0,40823.0,0.38590013]
[1645149111404,0.0091,40831.0,40824.0,0.19898917]
[1645149111605,0.06125,40829.0,40824.0,0.19898917]
[1645149111904,0.061251,40828.0,40824.0,0.19898917]
[1645149113260,0.42148064,40831.0,40824.0,0.19898917]
[1645149113261,0.33059604,40836.0,40831.0,0.02941635]
[1645149113460,1.59175061,40847.0,40831.0,0.02941635]
[1645149113461,0.061249,40835.0,40831.0,0.02941635]
[1645149113661,0.183747,40838.0,40831.0,0.02941635]
[1645149113868,0.01801,40836.0,40831.0,0.02941635]
[1645149114162,0.122496,40834.0,40831.0,0.02941635]
[1645149114362,0.33269958,40832.0,40831.0,0.02941635]
[1645149115467,0.33269958,40832.0,40823.0,0.05458113]
[1645149115468,0.01801,40830.0,40823.0,0.05458113]
[1645149115664,0.06801,40830.0,40823.0,0.05458113]
[1645149116410,0.079276,40825.0,40823.0,0.05458113]
[1645149116607,0.061264,40825.0,40823.0,0.05458113]
[1645149117005,0.02941,40831.0,40823.0,0.05458113]
[1645149117506,0.061246,40827.0,40823.0,0.05458113]
[1645149117704,0.061246,40827.0,40824.0,0.20951163]
[1645149117908,0.1976537,40834.0,40824.0,0.20951163]
[1645149117909,0.05,40841.0,40825.0,0.331319]
[1645149118105,0.05,40841.0,40824.0,0.25951163]
[1645149118306,6.15e-05,40832.0,40824.0,0.25951163]
[1645149118504,0.061246,40831.0,40824.0,0.20951163]
[1645149118704,0.122492,40831.0,40824.0,0.20951163]
[1645149119956,0.122492,40831.0,40820.0,0.06159637]
[1645149120160,0.122492,40831.0,40814.0,0.1]
[1645149120161,0.061252,40828.0,40814.0,0.1]
[1645149120358,0.061252,40828.0,40817.0,0.00024816]
[1645149120359,1.69453078,40827.0,40817.0,0.00024816]
[1645149120656,2.17053078,40827.0,40817.0,0.00024816]
[1645149120856,0.01801,40823.0,40817.0,0.00024816]
[1645149121057,0.01801,40821.0,40817.0,0.00024816]
[1645149121258,0.061272,40821.0,40817.0,0.00024816]
[1645149121460,0.01801,40820.0,40816.0,0.19381938]
[1645149121657,0.01801,40820.0,40817.0,0.00024814]
[1645149121858,0.01801,40818.0,40817.0,0.00024814]
[1645149122057,0.061271,40819.0,40817.0,0.00024814]
[1645149122259,0.122541,40819.0,40817.0,0.00024814]
[1645149122659,0.122541,40819.0,40814.0,0.21570467]
[1645149122859,0.122549,40817.0,40816.0,0.00024814]
[1645149123705,0.183822,40817.0,40815.0,0.0002999]
[1645149123902,0.245099,40817.0,40814.0,0.21595282]
[1645149124303,1.0,40816.0,40808.0,0.0002999]
[1645149124505,1.0,40816.0,40807.0,0.00129268]
[1645149124506,0.30720532,40811.0,40807.0,0.00129268]
[1645149124703,0.36849332,40811.0,40807.0,0.00099278]
[1645149124903,0.30720532,40811.0,40805.0,0.0002999]
[1645149125103,0.061289,40810.0,40806.0,0.326319]
[1645149125303,0.061289,40810.0,40808.0,0.25867371]
[1645149125904,0.061289,40810.0,40805.0,0.0002999]
[1645149126105,0.061289,40810.0,40801.0,0.0098]
[1645149126106,0.061277,40809.0,40802.0,0.0002999]
[1645149126304,0.122566,40809.0,40802.0,0.0002999]
[1645149126504,0.02288,40808.0,40807.0,0.00024817]
[1645149126709,0.07288,40808.0,40807.0,0.00024817]
[1645149126905,0.05,40808.0,40807.0,0.00024817]
[1645149127168,0.183888,40808.0,40807.0,0.00054807]
[1645149127362,0.183888,40808.0,40806.0,0.23648169]
[1645149127961,0.02288,40807.0,40806.0,0.23678159]
[1645149128360,0.183888,40808.0,40806.0,0.23678159]
[1645149128864,0.183888,40808.0,40804.0,0.00024818]
[1645149129162,0.131585,40812.0,40805.0,0.332158]
[1645149129163,0.070277,40812.0,40805.0,0.332158]
[1645149129366,0.009,40812.0,40803.0,0.0666237]
[1645149129560,0.009,40812.0,40804.0,0.061279]
[1645149129760,0.009,40812.0,40804.0,0.0615789]
[1645149129961,0.009,40812.0,40809.0,0.23322902]
[1645149130162,0.02288,40811.0,40809.0,0.23322902]
[1645149130461,0.131559,40812.0,40805.0,0.0002999]
[1645149130662,0.131559,40812.0,40802.0,0.0002999]
[1645149130906,0.070277,40812.0,40805.0,0.061278]
[1645149131108,0.070277,40812.0,40804.0,0.0002999]
[1645149131310,0.070277,40812.0,40805.0,0.216369]
[1645149131713,0.059,40812.0,40805.0,0.2166689]
[1645149131915,0.05,40812.0,40805.0,0.2166689]
[1645149132109,0.05,40813.0,40805.0,0.2166689]
[1645149132312,0.1,40815.0,40805.0,0.2166689]
[1645149132510,0.1,40815.0,40814.0,0.19909005]
[1645149132710,0.245111,40817.0,40814.0,0.19909005]
[1645149132711,0.00024809,40820.0,40814.0,0.51942567]
[1645149132910,0.00024809,40820.0,40814.0,0.19909005]
[1645149133509,0.24545444,40823.0,40814.0,0.19909005]
[1645149133709,0.00024811,40820.0,40814.0,0.19909005]
[1645149134210,0.5046235,40818.0,40814.0,0.19713005]
[1645149134660,0.24,40818.0,40814.0,0.19713005]
[1645149135454,0.24,40818.0,40814.0,0.19742995]
[1645149136256,0.24,40818.0,40815.0,0.061261]
[1645149136456,0.24,40818.0,40815.0,0.0615609]
[1645149137258,0.061262,40821.0,40818.0,0.04766958]
[1645149137259,0.00024811,40820.0,40818.0,0.04766958]
[1645149138260,0.061262,40821.0,40818.0,0.04796948]
[1645149138502,0.06151011,40821.0,40818.0,0.04796948]
[1645149139304,0.06151011,40821.0,40818.0,0.04766958]
[1645149139505,0.061262,40821.0,40818.0,0.04766958]
[1645149143555,0.301262,40821.0,40818.0,0.04766958]
[1645149145159,0.362527,40821.0,40818.0,0.04766958]
[1645149145359,0.35747396,40821.0,40818.0,0.04766958]
[1645149145760,0.40747396,40821.0,40818.0,0.04766958]
[1645149146612,0.34620896,40821.0,40818.0,0.04766958]
[1645149146810,0.29620896,40821.0,40818.0,0.04766958]
[1645149147210,0.27120896,40821.0,40818.0,0.04766958]
[1645149147709,0.33247396,40821.0,40818.0,0.04766958]
[1645149148511,0.11722878,40822.0,40818.0,0.04766958]
[1645149148711,0.02312811,40822.0,40821.0,0.24495523]
[1645149149113,0.122527,40823.0,40821.0,0.24495523]
[1645149149757,0.25078481,40822.0,40821.0,0.24495523]
[1645149150358,0.122527,40823.0,40821.0,0.24495523]
[1645149151062,0.02288,40822.0,40821.0,0.24495523]
[1645149151259,0.15887504,40823.0,40821.0,0.24495523]
[1645149151462,0.122527,40823.0,40821.0,0.24495523]
[1645149151662,0.122523,40824.0,40822.0,0.332158]
[1645149151663,0.12277111,40824.0,40822.0,0.332158]
[1645149151863,0.00024811,40824.0,40822.0,0.3324579]
[1645149152266,0.00024811,40824.0,40823.0,0.431158]
[1645149152463,0.00024811,40824.0,40823.0,0.4404579]
[1645149152666,0.31897964,40837.0,40823.0,0.5404579]
[1645149152864,0.31909906,40837.0,40834.0,0.22011256]
[1645149153063,0.06135942,40837.0,40828.0,0.049]
[1645149153503,0.31646944,40836.0,40828.0,0.049]
[1645149153705,0.37783086,40836.0,40829.0,0.12247934]
[1645149153905,0.37783086,40836.0,40831.0,0.061239]
[1645149154108,0.00023253,40834.0,40832.0,0.23837745]
[1645149154306,0.00035195,40834.0,40832.0,0.23837745]
[1645149155106,0.24011942,40834.0,40832.0,0.23837745]
[1645149155506,0.30135942,40834.0,40832.0,0.23837745]
[1645149157265,0.24011942,40834.0,40832.0,0.36085673]
[1645149157664,0.24011942,40834.0,40832.0,0.29961645]
[1645149158766,0.30135942,40834.0,40832.0,0.23837745]
[1645149159767,0.30649484,40833.0,40832.0,0.23837745]
[1645149159966,0.30661426,40833.0,40832.0,0.23837745]
[1645149160168,0.00011942,40833.0,40832.0,0.23837745]
[1645149162209,0.06136442,40833.0,40825.0,0.28373322]
[1645149162406,0.061249,40832.0,40826.0,0.049]
[1645149162608,0.18387842,40832.0,40826.0,0.049]
[1645149162806,0.12262942,40832.0,40826.0,0.049]
[1645149163009,0.00011942,40832.0,40827.0,0.061248]
[1645149163213,0.06136242,40832.0,40828.0,0.332158]
[1645149163509,0.06136242,40832.0,40827.0,0.27809963]
[1645149163708,0.06136242,40832.0,40827.0,0.37809963]
[1645149164208,0.061582,40832.0,40828.0,0.061245]
[1645149164407,0.061582,40832.0,40827.0,0.31685604]
[1645149164408,0.122829,40832.0,40827.0,0.31685604]
[1645149165263,0.06158193,40832.0,40827.0,0.31685604]
[1645149166063,0.06158193,40832.0,40827.0,0.21685604]
[1645149166263,0.00055279,40832.0,40828.0,0.332158]
[1645149166465,0.00033328,40832.0,40829.0,0.332158]
[1645149166664,0.00033328,40832.0,40828.0,0.332158]
[1645149166864,0.00033328,40832.0,40828.0,0.39340076]
[1645149167264,0.00011942,40832.0,40829.0,0.061245]
[1645149167464,0.06157928,40832.0,40829.0,0.061245]
[1645149167666,0.00033328,40832.0,40830.0,0.332158]
[1645149167865,0.00033328,40832.0,40831.0,0.049]
[1645149168070,0.00033328,40832.0,40831.0,0.381158]
[1645149168266,0.00033328,40832.0,40831.0,0.5424]
[1645149168914,0.00011942,40832.0,40831.0,0.5424]
[1645149169116,0.00011942,40832.0,40831.0,0.4424]
[1645149169616,0.00011942,40832.0,40831.0,0.049]
[1645149169815,0.00011942,40832.0,40831.0,0.381158]
[1645149170217,0.00011942,40832.0,40831.0,0.90013764]
[1645149170417,0.00011942,40832.0,40831.0,1.51293764]
[1645149170418,1.753e-05,40832.0,40831.0,1.51293764]
[1645149170616,0.24024246,40834.0,40833.0,1.790158]
[1645149170815,0.0021,40849.0,40837.0,0.56641273]
[1645149171020,0.0021,40849.0,40840.0,0.332158]
[1645149171216,0.0021,40849.0,40842.0,0.332158]
[1645149171416,0.0021,40849.0,40844.0,0.59172378]
[1645149171716,0.0021,40849.0,40846.0,0.393374]
[1645149171915,0.0021,40849.0,40847.0,0.049]
[1645149172166,0.0021,40849.0,40848.0,0.332158]
[1645149172362,0.0021,40849.0,40848.0,0.481158]
[1645149173967,0.0021,40849.0,40848.0,0.80094072]
[1645149174163,8.971e-05,40851.0,40849.0,0.7]
[1645149174369,8.971e-05,40851.0,40850.0,0.81212977]
[1645149174563,8.971e-05,40851.0,40850.0,0.86212977]
[1645149174762,8.971e-05,40851.0,40850.0,0.96212977]
[1645149174963,0.0011,40852.0,40850.0,1.18650169]
[1645149175164,0.0011,40852.0,40851.0,0.65194072]
[1645149175366,0.0011,40852.0,40851.0,0.80094072]
[1645149175563,0.00123408,40853.0,40851.0,0.80094072]
[1645149175767,0.00123408,40853.0,40852.0,1.3476715]
[1645149176016,0.00123408,40853.0,40852.0,1.3966715]
[1645149176017,0.001,40853.0,40852.0,1.3966715]
[1645149176219,0.001,40853.0,40852.0,1.4966715]
[1645149176419,0.0021,40858.0,40854.0,0.65]
[1645149176617,0.0021,40858.0,40857.0,0.6128]
[1645149176815,0.0021,40858.0,40857.0,1.46374072]
[1645149177019,0.001,40862.0,40859.0,0.7]
[1645149177318,0.0001,40862.0,40861.0,1.244958]
[1645149177517,0.0001,40862.0,40861.0,1.11570178]
[1645149177716,0.0001,40862.0,40861.0,1.16570178]
[1645149177918,0.0001,40862.0,40861.0,1.43768567]
[1645149178120,0.0001,40862.0,40861.0,1.07687578]
[1645149178319,0.0001,40862.0,40861.0,0.381158]
[1645149178320,0.2401,40862.0,40861.0,0.381158]
[1645149178520,0.2401,40862.0,40860.0,0.19332184]
[1645149178521,0.2401,40862.0,40860.0,0.331745]
[1645149178722,0.2401,40862.0,40861.0,0.380745]
[1645149179120,0.51341094,40862.0,40861.0,0.380745]
[1645149179519,0.51341094,40862.0,40861.0,0.331745]
[1645149179764,0.51341094,40862.0,40856.0,0.122396]
[1645149179964,0.51341094,40862.0,40857.0,0.331745]
[1645149180268,0.51341094,40862.0,40857.0,0.431745]
[1645149180464,0.51341094,40862.0,40857.0,0.331745]
[1645149180665,0.2401,40862.0,40858.0,0.061197]
[1645149180865,0.2401,40862.0,40859.0,0.45412186]
[1645149181064,0.24033464,40862.0,40859.0,0.45412186]
[1645149181270,0.24033464,40862.0,40859.0,0.55412186]
[1645149181664,0.45472352,40862.0,40859.0,0.55412186]